{"text_format":"3","workbook":"xlsx","n_sheets":7,"sheets":["Ponedjeljak","Utorak","Srijeda","Četvrtak","Petak","Subota","Nedjelja"],"not_rendered":{"defined_names":21},"read":"whole","date_system":"1900"}

{"sheet":"Ponedjeljak","index":0,"n_rows":10,"n_cols":13,"rows_kept":10,"merged":[[0,1,0,4],[1,2,1,4],[2,2,2,4]]}
[null,"Raspored smjena"]
[null,"Za tjedan: ","Datum"]
[null,"Naziv odjela: ","Ime i prezime"]
[]
[null,"PONEDJELJAK","7:00:00","8:00:00","9:00:00","10:00:00","11:00:00","12:00:00","13:00:00","14:00:00","15:00:00","Bolovanje?","UKUPNO"]
[null,"Ime i prezime 1","rukovoditelj","rukovoditelj","rukovoditelj","rukovoditelj","rukovoditelj","rukovoditelj","rukovoditelj","rukovoditelj","rukovoditelj",null,{"$f":"COUNTIF(Ponedjeljak[[#This Row],[7:00:00]:[15:00:00]],\"*\")","v":9}]
[null,"Naziv 2",null,"blagajnik","blagajnik","blagajnik","blagajnik",{"$nulls":5},{"$f":"COUNTIF(Ponedjeljak[[#This Row],[7:00:00]:[15:00:00]],\"*\")","v":4}]
[null,"Ime i prezime 3",null,"recepcionar","recepcionar","recepcionar","recepcionar ","recepcionar","recepcionar","recepcionar",null,null,{"$f":"COUNTIF(Ponedjeljak[[#This Row],[7:00:00]:[15:00:00]],\"*\")","v":7}]
[null,"Ime i prezime 4",null,"recepcionar","recepcionar","recepcionar","recepcionar ","recepcionar","recepcionar","recepcionar",null,null,{"$f":"COUNTIF(Ponedjeljak[[#This Row],[7:00:00]:[15:00:00]],\"*\")","v":7}]
[null,"Ime i prezime 5",{"$nulls":9},"Bolovanje",{"$f":"COUNTIF(Ponedjeljak[[#This Row],[7:00:00]:[15:00:00]],\"*\")","v":0}]

{"sheet":"Utorak","index":1,"n_rows":10,"n_cols":13,"rows_kept":10,"merged":[[0,1,0,4],[1,2,1,4],[2,2,2,4]]}
[null,"Raspored smjena"]
[null,"Za tjedan: ",{"$f":"Ponedjeljak!C2","v":"Datum"}]
[null,"Naziv odjela: ",{"$f":"Ponedjeljak!C3","v":"Ime i prezime"}]
[]
[null,"UTORAK","7:00:00","8:00:00","9:00:00","10:00:00","11:00:00","12:00:00","13:00:00","14:00:00","15:00:00","Bolovanje?","UKUPNO"]
[null,"Ime i prezime 1","rukovoditelj","rukovoditelj","rukovoditelj","rukovoditelj","rukovoditelj","rukovoditelj","rukovoditelj","rukovoditelj","rukovoditelj",null,{"$f":"COUNTIF(Utorak[[#This Row],[7:00:00]:[15:00:00]],\"*\")","v":9}]
[null,"Naziv 2",null,"blagajnik","blagajnik","blagajnik","blagajnik",{"$nulls":5},{"$f":"COUNTIF(Utorak[[#This Row],[7:00:00]:[15:00:00]],\"*\")","v":4}]
[null,"Ime i prezime 3",null,"recepcionar","recepcionar","recepcionar","recepcionar ","recepcionar","recepcionar","recepcionar",null,null,{"$f":"COUNTIF(Utorak[[#This Row],[7:00:00]:[15:00:00]],\"*\")","v":7}]
[null,"Ime i prezime 4",null,"recepcionar","recepcionar","recepcionar","recepcionar ","recepcionar","recepcionar","recepcionar",null,null,{"$f":"COUNTIF(Utorak[[#This Row],[7:00:00]:[15:00:00]],\"*\")","v":7}]
[null,"Ime i prezime 5",{"$nulls":9},"Bolovanje",{"$f":"COUNTIF(Utorak[[#This Row],[7:00:00]:[15:00:00]],\"*\")","v":0}]

{"sheet":"Srijeda","index":2,"n_rows":10,"n_cols":13,"rows_kept":10,"merged":[[0,1,0,4],[1,2,1,4],[2,2,2,4]]}
[null,"Raspored smjena"]
[null,"Za tjedan: ",{"$f":"Ponedjeljak!C2","v":"Datum"}]
[null,"Naziv odjela: ",{"$f":"Ponedjeljak!C3","v":"Ime i prezime"}]
[]
[null,"SRIJEDA","7:00:00","8:00:00","9:00:00","10:00:00","11:00:00","12:00:00","13:00:00","14:00:00","15:00:00","Bolovanje?","UKUPNO"]
[null,"Ime i prezime 1","rukovoditelj","rukovoditelj","rukovoditelj","rukovoditelj","rukovoditelj","rukovoditelj","rukovoditelj","rukovoditelj","rukovoditelj",null,{"$f":"COUNTIF(Srijeda[[#This Row],[7:00:00]:[15:00:00]],\"*\")","v":9}]
[null,"Naziv 2",null,"blagajnik","blagajnik","blagajnik","blagajnik",{"$nulls":5},{"$f":"COUNTIF(Srijeda[[#This Row],[7:00:00]:[15:00:00]],\"*\")","v":4}]
[null,"Ime i prezime 3",null,"recepcionar","recepcionar","recepcionar","recepcionar ","recepcionar","recepcionar","recepcionar",null,null,{"$f":"COUNTIF(Srijeda[[#This Row],[7:00:00]:[15:00:00]],\"*\")","v":7}]
[null,"Ime i prezime 4",null,"recepcionar","recepcionar","recepcionar","recepcionar ","recepcionar","recepcionar","recepcionar",null,null,{"$f":"COUNTIF(Srijeda[[#This Row],[7:00:00]:[15:00:00]],\"*\")","v":7}]
[null,"Ime i prezime 5",{"$nulls":9},"Bolovanje",{"$f":"COUNTIF(Srijeda[[#This Row],[7:00:00]:[15:00:00]],\"*\")","v":0}]

{"sheet":"Četvrtak","index":3,"n_rows":10,"n_cols":13,"rows_kept":10,"merged":[[0,1,0,4],[1,2,1,4],[2,2,2,4]]}
[null,"Raspored smjena"]
[null,"Za tjedan: ",{"$f":"Ponedjeljak!C2","v":"Datum"}]
[null,"Naziv odjela: ",{"$f":"Ponedjeljak!C3","v":"Ime i prezime"}]
[]
[null,"ČETVRTAK","7:00:00","8:00:00","9:00:00","10:00:00","11:00:00","12:00:00","13:00:00","14:00:00","15:00:00","Bolovanje?","UKUPNO"]
[null,"Ime i prezime 1","rukovoditelj","rukovoditelj","rukovoditelj","rukovoditelj","rukovoditelj","rukovoditelj","rukovoditelj","rukovoditelj","rukovoditelj",null,{"$f":"COUNTIF(Četvrtak[[#This Row],[7:00:00]:[15:00:00]],\"*\")","v":9}]
[null,"Naziv 2",null,"blagajnik","blagajnik","blagajnik","blagajnik",{"$nulls":5},{"$f":"COUNTIF(Četvrtak[[#This Row],[7:00:00]:[15:00:00]],\"*\")","v":4}]
[null,"Ime i prezime 3",null,"recepcionar","recepcionar","recepcionar","recepcionar ","recepcionar","recepcionar","recepcionar",null,null,{"$f":"COUNTIF(Četvrtak[[#This Row],[7:00:00]:[15:00:00]],\"*\")","v":7}]
[null,"Ime i prezime 4",null,"recepcionar","recepcionar","recepcionar","recepcionar ","recepcionar","recepcionar","recepcionar",null,null,{"$f":"COUNTIF(Četvrtak[[#This Row],[7:00:00]:[15:00:00]],\"*\")","v":7}]
[null,"Ime i prezime 5",{"$nulls":9},"Bolovanje",{"$f":"COUNTIF(Četvrtak[[#This Row],[7:00:00]:[15:00:00]],\"*\")","v":0}]

{"sheet":"Petak","index":4,"n_rows":10,"n_cols":13,"rows_kept":10,"merged":[[0,1,0,4],[1,2,1,4],[2,2,2,4]]}
[null,"Raspored smjena"]
[null,"Za tjedan: ",{"$f":"Ponedjeljak!C2","v":"Datum"}]
[null,"Naziv odjela: ",{"$f":"Ponedjeljak!C3","v":"Ime i prezime"}]
[]
[null,"PETAK","7:00:00","8:00:00","9:00:00","10:00:00","11:00:00","12:00:00","13:00:00","14:00:00","15:00:00","Bolovanje?","UKUPNO"]
[null,"Ime i prezime 1","rukovoditelj","rukovoditelj","rukovoditelj","rukovoditelj","rukovoditelj","rukovoditelj","rukovoditelj","rukovoditelj","rukovoditelj",null,{"$f":"COUNTIF(Petak[[#This Row],[7:00:00]:[15:00:00]],\"*\")","v":9}]
[null,"Naziv 2",null,"blagajnik","blagajnik","blagajnik","blagajnik",{"$nulls":5},{"$f":"COUNTIF(Petak[[#This Row],[7:00:00]:[15:00:00]],\"*\")","v":4}]
[null,"Ime i prezime 3",null,"recepcionar","recepcionar","recepcionar","recepcionar ","recepcionar","recepcionar","recepcionar",null,null,{"$f":"COUNTIF(Petak[[#This Row],[7:00:00]:[15:00:00]],\"*\")","v":7}]
[null,"Ime i prezime 4",null,"recepcionar","recepcionar","recepcionar","recepcionar ","recepcionar","recepcionar","recepcionar",null,null,{"$f":"COUNTIF(Petak[[#This Row],[7:00:00]:[15:00:00]],\"*\")","v":7}]
[null,"Ime i prezime 5",{"$nulls":9},"Bolovanje",{"$f":"COUNTIF(Petak[[#This Row],[7:00:00]:[15:00:00]],\"*\")","v":0}]

{"sheet":"Subota","index":5,"n_rows":10,"n_cols":13,"rows_kept":10,"merged":[[0,1,0,4],[1,2,1,4],[2,2,2,4]]}
[null,"Raspored smjena"]
[null,"Za tjedan: ",{"$f":"Ponedjeljak!C2","v":"Datum"}]
[null,"Naziv odjela: ",{"$f":"Ponedjeljak!C3","v":"Ime i prezime"}]
[]
[null,"SUBOTA","7:00:00","8:00:00","9:00:00","10:00:00","11:00:00","12:00:00","13:00:00","14:00:00","15:00:00","Bolovanje?","UKUPNO"]
[null,"Ime i prezime 1","rukovoditelj","rukovoditelj","rukovoditelj","rukovoditelj","rukovoditelj","rukovoditelj","rukovoditelj","rukovoditelj","rukovoditelj",null,{"$f":"COUNTIF(Subota[[#This Row],[7:00:00]:[15:00:00]],\"*\")","v":9}]
[null,"Naziv 2",null,"blagajnik","blagajnik","blagajnik","blagajnik",{"$nulls":5},{"$f":"COUNTIF(Subota[[#This Row],[7:00:00]:[15:00:00]],\"*\")","v":4}]
[null,"Ime i prezime 3",null,"recepcionar","recepcionar","recepcionar","recepcionar ","recepcionar","recepcionar","recepcionar",null,null,{"$f":"COUNTIF(Subota[[#This Row],[7:00:00]:[15:00:00]],\"*\")","v":7}]
[null,"Ime i prezime 4",null,"recepcionar","recepcionar","recepcionar","recepcionar ","recepcionar","recepcionar","recepcionar",null,null,{"$f":"COUNTIF(Subota[[#This Row],[7:00:00]:[15:00:00]],\"*\")","v":7}]
[null,"Ime i prezime 5",{"$nulls":9},"Bolovanje",{"$f":"COUNTIF(Subota[[#This Row],[7:00:00]:[15:00:00]],\"*\")","v":0}]

{"sheet":"Nedjelja","index":6,"n_rows":10,"n_cols":13,"rows_kept":10,"merged":[[0,1,0,4],[1,2,1,4],[2,2,2,4]]}
[null,"Raspored smjena"]
[null,"Za tjedan: ",{"$f":"Ponedjeljak!C2","v":"Datum"}]
[null,"Naziv odjela: ",{"$f":"Ponedjeljak!C3","v":"Ime i prezime"}]
[]
[null,"NEDJELJA","7:00:00","8:00:00","9:00:00","10:00:00","11:00:00","12:00:00","13:00:00","14:00:00","15:00:00","Bolovanje?","UKUPNO"]
[null,"Ime i prezime 1","rukovoditelj","rukovoditelj","rukovoditelj","rukovoditelj","rukovoditelj","rukovoditelj","rukovoditelj","rukovoditelj","rukovoditelj",null,{"$f":"COUNTIF(Nedjelja[[#This Row],[7:00:00]:[15:00:00]],\"*\")","v":9}]
[null,"Naziv 2",null,"blagajnik","blagajnik","blagajnik","blagajnik",{"$nulls":5},{"$f":"COUNTIF(Nedjelja[[#This Row],[7:00:00]:[15:00:00]],\"*\")","v":4}]
[null,"Ime i prezime 3",null,"recepcionar","recepcionar","recepcionar","recepcionar ","recepcionar","recepcionar","recepcionar",null,null,{"$f":"COUNTIF(Nedjelja[[#This Row],[7:00:00]:[15:00:00]],\"*\")","v":7}]
[null,"Ime i prezime 4",null,"recepcionar","recepcionar","recepcionar","recepcionar ","recepcionar","recepcionar","recepcionar",null,null,{"$f":"COUNTIF(Nedjelja[[#This Row],[7:00:00]:[15:00:00]],\"*\")","v":7}]
[null,"Ime i prezime 5",{"$nulls":9},"Bolovanje",{"$f":"COUNTIF(Nedjelja[[#This Row],[7:00:00]:[15:00:00]],\"*\")","v":0}]